fUSD/lending_fUSD_20250110
["ID","MTS","AMOUNT","RATE_DAILY","PERIOD"]
[348420948,1736524249937,-877.06,9.284e-05,2]
[348420949,1736524249946,-766.28,9.284e-05,2]
[348420950,1736524249957,-2611.4,9.284e-05,2]
[348420951,1736524249967,-1556.83,9.284e-05,2]
[348420952,1736524249977,-826.2,9.284e-05,2]
[348420953,1736524249987,-7495.58,9.284e-05,2]
[348420954,1736524249999,-784.4,9.284e-05,2]
[348420955,1736524250009,-797.2,9.284e-05,2]
[348420956,1736524250019,-915.4,9.284e-05,2]
[348420957,1736524250029,-1078.79,9.284e-05,2]
[348420958,1736524250038,-1363.41,9.284e-05,2]
[348420959,1736524250048,-500.0,9.284e-05,2]
[348420960,1736524250058,-1339.84,9.284e-05,2]
[348420961,1736524250068,-1267.14,9.284e-05,2]
[348420962,1736524250078,-1698.13,9.284e-05,2]
[348420963,1736524250088,-949.94,9.284e-05,2]
[348420964,1736524250098,-1813.78,9.284e-05,2]
[348420965,1736524250108,-500.0,9.284e-05,2]
[348420966,1736524250119,-500.0,9.284e-05,2]
[348420967,1736524250129,-500.0,9.284e-05,2]
[348420968,1736524250140,-5166.39,9.284e-05,2]
[348420969,1736524250150,-3593.7,9.284e-05,2]
[348420970,1736524250160,-1020.92,9.284e-05,2]
[348420971,1736524250169,-1241.67,9.284e-05,2]
[348420972,1736524250179,-742.95,9.284e-05,2]
[348420973,1736524250189,-675.3,9.284e-05,2]
[348420974,1736524250199,-1052.3,9.284e-05,2]
[348420975,1736524250210,-792.94,9.284e-05,2]
[348420976,1736524250219,-675.43,9.285e-05,2]
[348420977,1736524250230,-714.54,9.285e-05,2]
[348420978,1736524250240,-500.0,9.285e-05,2]
[348420979,1736524250250,-3297.03,9.285e-05,2]
[348420980,1736524250261,-971.52,9.285e-05,2]
[348420981,1736524250271,-764.62,9.285e-05,2]
[348420982,1736524250282,-764.62,9.285e-05,2]
[348420983,1736524250292,-500.0,9.285e-05,2]
[348420984,1736524250302,-621.27,9.285e-05,2]
[348420985,1736524250312,-500.0,9.285e-05,2]
[348420986,1736524250322,-500.0,9.285e-05,2]
[348420987,1736524250332,-500.0,9.285e-05,2]
[348420988,1736524250342,-565.33786348,9.285e-05,2]
[348420989,1736524250352,-535.32,9.285e-05,2]
[348420990,1736524250362,-1434.01,9.285e-05,2]
[348420991,1736524250374,-269.9,9.285e-05,2]
[348420992,1736524250384,-378.43,9.285e-05,2]
[348420993,1736524250393,-500.0,9.285e-05,2]
[348420994,1736524250403,-635.49,9.285e-05,2]
[348420995,1736524250413,-1010.79,9.285e-05,2]
[348420996,1736524250422,-500.0,9.285e-05,2]
[348420997,1736524250433,-1419.64,9.285e-05,2]
[348420998,1736524250443,-500.0,9.285e-05,2]
[348420999,1736524250453,-609.13,9.285e-05,2]
[348421000,1736524250463,-1774.64,9.285e-05,2]
[348421001,1736524250473,-1039.15,9.285e-05,2]
[348421002,1736524250484,-528.76,9.285e-05,2]
[348421003,1736524250494,-500.0,9.285e-05,2]
[348421004,1736524250504,-994.56,9.285e-05,2]
[348421005,1736524250514,-593.02,9.285e-05,2]
[348421006,1736524250523,-1240.07,9.285e-05,2]
[348421007,1736524250534,-814.5,9.285e-05,2]
[348421008,1736524250544,-868.17,9.285e-05,2]
[348421009,1736524250555,-953.37,9.285e-05,2]
[348421010,1736524250565,-500.0,9.285e-05,2]
[348421011,1736524250576,-500.0,9.285e-05,2]
[348421012,1736524250585,-500.0,9.285e-05,2]
[348421013,1736524250595,-500.0,9.285e-05,2]
[348421014,1736524250604,-789.01,9.285e-05,2]
[348421015,1736524250614,-500.0,9.285e-05,2]
[348421016,1736524250625,-1265.34,9.285e-05,2]
[348421017,1736524250636,-500.0,9.285e-05,2]
[348421018,1736524250646,-500.0,9.285e-05,2]
[348421019,1736524250656,-3093.1,9.285e-05,2]
[348421020,1736524250666,-864.42,9.285e-05,2]
[348421021,1736524250675,-500.0,9.285e-05,2]
[348421022,1736524250686,-500.0,9.285e-05,2]
[348421023,1736524250696,-1402.75,9.285e-05,2]
[348421024,1736524250706,-1766.75,9.285e-05,2]
[348421025,1736524250716,-500.0,9.285e-05,2]
[348421026,1736524250726,-555.91,9.285e-05,2]
[348421027,1736524250736,-652.78,9.285e-05,2]
[348421028,1736524250746,-608.24,9.285e-05,2]
[348421029,1736524250755,-4401.25,9.285e-05,2]
[348421030,1736524250765,-500.0,9.285e-05,2]
[348421031,1736524250774,-500.0,9.285e-05,2]
[348421032,1736524250784,-500.0,9.285e-05,7]
[348421033,1736524250793,-500.0,9.285e-05,2]
[348421034,1736524250803,-500.0,9.285e-05,2]
[348421035,1736524250814,-880.99,9.285e-05,2]
[348421036,1736524250823,-500.0,9.285e-05,2]
[348421037,1736524250833,-4953.9,9.285e-05,2]
[348421038,1736524250842,-500.0,9.285e-05,2]
[348421039,1736524250851,-500.0,9.285e-05,2]
[348421040,1736524250861,-500.0,9.285e-05,2]
[348421041,1736524250871,-1040.05,9.285e-05,2]
[348421042,1736524250882,-500.0,9.285e-05,2]
[348421043,1736524250891,-500.0,9.285e-05,2]
[348421044,1736524250900,-500.0,9.285e-05,2]
[348421045,1736524250910,-728.84,9.285e-05,2]
[348421046,1736524250925,-787.78,9.285e-05,2]
[348421047,1736524250936,-901.88,9.285e-05,2]
[348421048,1736524250946,-895.76,9.285e-05,2]
[348421049,1736524250957,-677.22,9.285e-05,2]
[348421050,1736524250967,-503.87556113,9.285e-05,2]
[348421051,1736524250977,-500.0,9.285e-05,2]
[348421052,1736524250986,-2539.7,9.285e-05,2]
[348421053,1736524250997,-812.91,9.285e-05,2]
[348421054,1736524251007,-500.0,9.285e-05,2]
[348421055,1736524251017,-500.0,9.285e-05,2]
[348421056,1736524251027,-500.0,9.285e-05,2]
[348421057,1736524251037,-626.16,9.285e-05,2]
[348421058,1736524251046,-500.0,9.285e-05,2]
[348421059,1736524251056,-500.0,9.285e-05,2]
[348421060,1736524251065,-544.97,9.285e-05,2]
[348421061,1736524251076,-500.0,9.285e-05,2]
[348421062,1736524251087,-500.0,9.285e-05,2]
[348421063,1736524251097,-5186.84,9.285e-05,2]
[348421064,1736524251108,-707.45,9.285e-05,2]
[348421065,1736524251121,-500.0,9.285e-05,2]
[348421066,1736524251131,-500.0,9.285e-05,2]
[348421067,1736524251141,-686.88,9.285e-05,2]
[348421068,1736524251151,-500.0,9.285e-05,2]
[348421069,1736524251160,-500.0,9.285e-05,2]
[348421070,1736524251170,-657.79,9.285e-05,2]
[348421071,1736524251180,-500.0,9.285e-05,2]
[348421072,1736524251191,-500.0,9.285e-05,2]
[348421073,1736524251201,-500.0,9.285e-05,2]
[348421074,1736524251210,-500.0,9.285e-05,2]
[348421075,1736524251220,-400.7018732,9.285e-05,2]
[348421076,1736524251231,-500.0,9.285e-05,2]
[348421077,1736524251241,-856.71,9.285e-05,2]
[348421078,1736524251250,-783.7,9.285e-05,2]
[348421079,1736524251261,-794.78,9.285e-05,2]
[348421080,1736524251271,-1062.86,9.285e-05,2]
[348421081,1736524251282,-500.0,9.285e-05,2]
[348421082,1736524251292,-210.9,9.285e-05,2]
[348421083,1736524251303,-3899.76,9.285e-05,2]
[348421084,1736524251312,-500.0,9.285e-05,2]
[348421085,1736524251322,-500.0,9.285e-05,2]
[348421086,1736524251332,-471.411506,9.285e-05,2]
[348421087,1736524251343,-500.0,9.285e-05,2]
[348421088,1736524251353,-634.52,9.285e-05,2]
[348421089,1736524251363,-500.0,9.285e-05,2]
[348421090,1736524251375,-534.18129167,9.285e-05,2]
[348421091,1736524251384,-500.0,9.285e-05,2]
[348421092,1736524251394,-1022.03,9.285e-05,2]
[348421093,1736524251404,-939.3,9.285e-05,2]
[348421094,1736524251414,-691.24,9.285e-05,2]
[348421095,1736524251424,-500.0,9.285e-05,2]
[348421096,1736524251434,-4054.05,9.285e-05,2]
[348421097,1736524251449,-813.45,9.285e-05,2]
[348421098,1736524251458,-500.0,9.285e-05,2]
[348421099,1736524251469,-500.0,9.285e-05,2]
[348421100,1736524251478,-500.0,9.285e-05,2]
[348421101,1736524251488,-500.0,9.285e-05,2]
[348421102,1736524251498,-500.0,9.285e-05,2]
[348421103,1736524251507,-1362.38,9.285e-05,2]
[348421104,1736524251517,-500.0,9.285e-05,2]
[348421105,1736524251527,-500.0,9.285e-05,2]
[348421106,1736524251537,-1051.14,9.285e-05,2]
[348421107,1736524251547,-500.0,9.285e-05,2]
[348421108,1736524251558,-500.0,9.285e-05,2]
[348421109,1736524251567,-1335.65,9.285e-05,2]
[348421110,1736524251577,-500.0,9.285e-05,2]
[348421111,1736524251587,-501.47684828,9.285e-05,2]
[348421112,1736524251601,-500.0,9.285e-05,2]
[348421113,1736524251611,-941.46,9.285e-05,2]
[348421114,1736524251625,-500.0,9.285e-05,2]
[348421115,1736524251634,-1314.49,9.285e-05,2]
[348421116,1736524251644,-500.0,9.285e-05,2]
[348421117,1736524251654,-500.0,9.285e-05,2]
[348421118,1736524251664,-500.0,9.285e-05,2]
[348421119,1736524251674,-500.0,9.285e-05,2]
[348421120,1736524251683,-500.0,9.285e-05,2]
[348421121,1736524251693,-500.0,9.285e-05,2]
[348421122,1736524251703,-500.0,9.285e-05,2]
[348421123,1736524251712,-2098.32,9.285e-05,2]
[348421124,1736524251722,-1156.61,9.285e-05,2]
[348421125,1736524251731,-659.09,9.285e-05,2]
[348421126,1736524251741,-1381.15,9.285e-05,2]
[348421127,1736524251751,-500.0,9.285e-05,2]
[348421128,1736524251763,-500.0,9.285e-05,2]
[348421129,1736524251773,-500.0,9.285e-05,2]
[348421130,1736524251783,-500.0,9.285e-05,2]
[348421131,1736524251792,-500.0,9.285e-05,2]
[348421132,1736524251802,-1912.15,9.285e-05,2]
[348421133,1736524251812,-511.82,9.285e-05,2]
[348421134,1736524251821,-951.49,9.285e-05,2]
[348421135,1736524251831,-622.11,9.285e-05,2]
[348421136,1736524251841,-500.0,9.285e-05,2]
[348421137,1736524251850,-500.0,9.286e-05,2]
[348421138,1736524251860,-500.0,9.286e-05,2]
[348421139,1736524251874,-500.0,9.286e-05,2]
[348421140,1736524251883,-952.88,9.286e-05,2]
[348421141,1736524251892,-500.0,9.286e-05,2]
[348421142,1736524251903,-500.0,9.286e-05,2]
[348421143,1736524251917,-705.22,9.286e-05,2]
[348421144,1736524251927,-974.31,9.286e-05,2]
[348421145,1736524251938,-500.0,9.286e-05,2]
[348421146,1736524251947,-1038.13,9.286e-05,2]
[348421147,1736524251959,-500.0,9.286e-05,2]
[348421148,1736524251970,-579.82,9.286e-05,2]
[348421149,1736524251979,-1012.33,9.286e-05,2]
[348421150,1736524251989,-648.63,9.286e-05,2]
[348421151,1736524251999,-500.0,9.286e-05,2]
[348421152,1736524252008,-571.87,9.286e-05,2]
[348421153,1736524252017,-500.0,9.286e-05,2]
[348421154,1736524252026,-1172.84,9.286e-05,2]
[348421155,1736524252035,-796.64,9.286e-05,2]
[348421156,1736524252045,-974.54,9.286e-05,2]
[348421157,1736524252055,-500.0,9.286e-05,2]
[348421158,1736524252064,-1273.5,9.286e-05,2]
[348421159,1736524252076,-659.75,9.286e-05,2]
[348421160,1736524252085,-158.04,9.286e-05,2]
[348421161,1736524252095,-886.68,9.286e-05,2]
[348421162,1736524252105,-500.0,9.286e-05,2]
[348421163,1736524252115,-500.0,9.286e-05,2]
[348421164,1736524252128,-1963.72,9.286e-05,2]
[348421165,1736524252138,-6187.03,9.286e-05,2]
[348421166,1736524252149,-1822.9,9.286e-05,2]
[348421167,1736524252158,-2565.68,9.286e-05,2]
[348421168,1736524252168,-3150.34,9.286e-05,2]
[348421169,1736524252178,-4721.83,9.287e-05,2]
[348421170,1736524252187,-2272.62,9.287e-05,2]
[348421171,1736524252197,-1591.49,9.287e-05,2]
[348421172,1736524252207,-2329.78,9.287e-05,2]
[348421173,1736524252217,-1432.42,9.287e-05,2]
[348421174,1736524252227,-1975.6,9.298e-05,2]
[348421175,1736524252236,-1883.34,9.325e-05,2]
[348421176,1736524252245,-1704.97,9.325e-05,2]
[348421177,1736524252255,-772.13,9.325e-05,2]
[348421178,1736524252264,-4013.17,9.325e-05,2]
[348421179,1736524252275,-255.0,9.391e-05,2]
[348421180,1736524252284,-1747.53,9.399e-05,2]
[348421181,1736524252293,-500.0,9.399e-05,2]
[348421182,1736524252303,-1348.6,9.399e-05,2]
[348421183,1736524252313,-3203.72,9.399e-05,2]
[348421184,1736524252322,-1647.23,9.399e-05,2]
[348421185,1736524252332,-1103.85,9.399e-05,2]
[348421186,1736524252341,-1226.84,9.399e-05,2]
[348421187,1736524252352,-843.28,9.399e-05,2]
[348421188,1736524252361,-1796.31,9.399e-05,2]
[348421189,1736524252373,-1043.14,9.399e-05,2]
[348421190,1736524252383,-1316.27,9.399e-05,2]
[348421191,1736524252392,-1311.99,9.399e-05,2]
[348421192,1736524252402,-2157.87,9.399e-05,2]
[348421193,1736524252412,-2366.16,9.399e-05,2]
[348421194,1736524252422,-2149.91,9.399e-05,2]
[348421195,1736524252431,-179.7,9.484e-05,2]
[348421196,1736524252442,-8696.06,9.5e-05,2]
[348421197,1736524252452,-1684.62,9.5e-05,2]
[348421198,1736524252462,-1188.63,9.5e-05,2]
[348421199,1736524252472,-1197.62,9.5e-05,2]
[348421200,1736524252482,-2275.37,9.5e-05,2]
[348421201,1736524252493,-662.96,9.5e-05,2]
[348421202,1736524252503,-1191.38,9.5e-05,2]
[348421203,1736524252513,-500.0,9.557e-05,2]
[348421204,1736524252523,-500.0,9.557e-05,2]
[348421205,1736524252534,-613.40311428,9.557e-05,2]
[348421206,1736524252543,-500.0,9.557e-05,2]
[348421207,1736524252553,-500.0,9.557e-05,2]
[348421208,1736524252563,-500.0,9.557e-05,2]
[348421209,1736524252573,-500.0,9.557e-05,2]
[348421210,1736524252583,-1593.59,9.557e-05,2]
[348421211,1736524252593,-500.0,9.557e-05,2]
[348421212,1736524252603,-1043.52,9.557e-05,2]
[348421213,1736524252613,-500.0,9.557e-05,2]
[348421214,1736524252623,-876.27,9.557e-05,2]
[348421215,1736524252634,-500.0,9.557e-05,2]
[348421216,1736524252643,-2264.41,9.557e-05,2]
[348421217,1736524252653,-1584.14,9.557e-05,2]
[348421218,1736524252663,-1819.95,9.557e-05,2]
[348421219,1736524252674,-500.0,9.557e-05,2]
[348421220,1736524252684,-1002.74,9.557e-05,2]
[348421221,1736524252694,-3030.78,9.557e-05,2]
[348421222,1736524252704,-2135.04,9.557e-05,2]
[348421223,1736524252715,-500.0,9.557e-05,2]
[348421224,1736524252726,-1651.51,9.557e-05,2]
[348421225,1736524252736,-1215.89,9.557e-05,2]
[348421226,1736524252746,-1582.69,9.557e-05,2]
[348421227,1736524252756,-3156.38,9.557e-05,2]
[348421228,1736524252766,-500.0,9.557e-05,2]
[348421229,1736524252776,-500.0,9.557e-05,2]
[348421230,1736524252787,-873.09,9.557e-05,2]
[348421231,1736524252798,-1763.77,9.557e-05,2]
[348421232,1736524252809,-965.26,9.557e-05,2]
[348421233,1736524252819,-648.15,9.557e-05,2]
[348421234,1736524252829,-1690.28,9.557e-05,2]
[348421235,1736524252839,-507.74,9.557e-05,2]
[348421236,1736524252850,-570.26,9.557e-05,2]
[348421237,1736524252860,-1258.78,9.557e-05,2]
[348421238,1736524252870,-1471.01,9.557e-05,2]
[348421239,1736524252882,-1409.72,9.557e-05,2]
[348421240,1736524252892,-589.92,9.557e-05,2]
[348421241,1736524252903,-761.8,9.558e-05,2]
[348421242,1736524252916,-500.0,9.558e-05,2]
[348421243,1736524252928,-939.91,9.558e-05,2]
[348421244,1736524252938,-961.78,9.558e-05,2]
[348421245,1736524252949,-822.48,9.558e-05,2]
[348421246,1736524252959,-566.63,9.558e-05,2]
[348421247,1736524252969,-500.0,9.558e-05,2]
[348421248,1736524252980,-500.0,9.558e-05,2]
[348421249,1736524252991,-500.0,9.558e-05,2]
[348421250,1736524253002,-745.23,9.558e-05,2]
[348421251,1736524253012,-1068.97,9.558e-05,2]
[348421252,1736524253022,-822.16,9.558e-05,2]
[348421253,1736524253033,-631.99252007,9.558e-05,2]
[348421254,1736524253043,-858.49,9.558e-05,2]
[348421255,1736524253053,-500.0,9.558e-05,2]
[348421256,1736524253063,-846.15,9.558e-05,2]
[348421257,1736524253075,-500.0,9.558e-05,2]
[348421258,1736524253087,-500.0,9.558e-05,2]
[348421259,1736524253097,-500.0,9.558e-05,2]
[348421260,1736524253107,-500.0,9.558e-05,2]
[348421261,1736524253117,-500.0,9.558e-05,2]
[348421262,1736524253128,-1010.23,9.558e-05,2]
[348421263,1736524253138,-1140.26,9.558e-05,2]
[348421264,1736524253148,-500.0,9.558e-05,2]
[348421265,1736524253159,-709.1,9.558e-05,2]
[348421266,1736524253169,-500.0,9.558e-05,2]
[348421267,1736524253178,-933.11,9.558e-05,2]
[348421268,1736524253189,-495.46093795,9.558e-05,2]
[348421269,1736524253199,-1046.94,9.558e-05,2]
[348421270,1736524253210,-602.2,9.558e-05,2]
[348421271,1736524253221,-888.35,9.558e-05,2]
[348421272,1736524253234,-500.0,9.558e-05,2]
[348421273,1736524253244,-500.0,9.558e-05,2]
[348421274,1736524253255,-500.0,9.558e-05,2]
[348421275,1736524253267,-627.38,9.558e-05,2]
[348421276,1736524253278,-162.64797709,9.558e-05,2]
[348421277,1736524253287,-1166.68,9.558e-05,2]
[348421278,1736524253298,-500.0,9.558e-05,2]
[348421279,1736524253310,-967.77,9.558e-05,2]
[348421280,1736524253321,-500.0,9.558e-05,2]
[348421281,1736524253332,-500.0,9.558e-05,2]
[348421282,1736524253345,-374.96933046,9.558e-05,2]
[348421283,1736524253355,-1005.93,9.558e-05,2]
[348421284,1736524253365,-781.9,9.558e-05,2]
[348421285,1736524253378,-500.0,9.558e-05,2]
[348421286,1736524253388,-2150.01,9.558e-05,2]
[348421287,1736524253398,-500.0,9.558e-05,2]
[348421288,1736524253409,-1052.34,9.558e-05,2]
[348421289,1736524253419,-912.91,9.558e-05,2]
[348421290,1736524253429,-1815.27,9.558e-05,2]
[348421291,1736524253439,-500.0,9.558e-05,2]
[348421292,1736524253449,-856.07,9.558e-05,2]
[348421293,1736524253460,-966.55,9.558e-05,2]
[348421294,1736524253470,-1861.8,9.558e-05,2]
[348421295,1736524253480,-688.9,9.558e-05,2]
[348421296,1736524253490,-1068.54,9.558e-05,2]
[348421297,1736524253502,-978.06,9.558e-05,2]
[348421298,1736524253513,-500.0,9.558e-05,2]
[348421299,1736524253524,-587.28,9.558e-05,2]
[348421300,1736524253536,-877.06,9.558e-05,2]
[348421301,1736524253547,-766.28,9.558e-05,2]
[348421302,1736524253558,-2611.4,9.558e-05,2]
[348421303,1736524253569,-1556.83,9.558e-05,2]
[348421304,1736524253579,-826.2,9.558e-05,2]
[348421305,1736524253589,-7495.58,9.558e-05,2]
[348421306,1736524253600,-784.4,9.558e-05,2]
[348421307,1736524253609,-797.2,9.558e-05,2]
[348421308,1736524253621,-915.4,9.558e-05,2]
[348421309,1736524253632,-1078.79,9.558e-05,2]
[348421310,1736524253642,-1363.41,9.558e-05,2]
[348421311,1736524253653,-500.0,9.558e-05,2]
[348421312,1736524253664,-1339.84,9.558e-05,2]
[348421313,1736524253674,-1267.14,9.558e-05,2]
[348421314,1736524253685,-1698.13,9.558e-05,2]
[348421315,1736524253695,-949.94,9.558e-05,2]
[348421316,1736524253707,-1813.78,9.558e-05,2]
[348421317,1736524253718,-500.0,9.558e-05,2]
[348421318,1736524253728,-636.8874462,9.558e-05,2]
[348421319,1736524253739,-500.0,9.558e-05,2]
[348421320,1736524253749,-5166.39,9.558e-05,2]
[348421321,1736524253759,-3593.7,9.558e-05,2]
[348421322,1736524253772,-1020.92,9.558e-05,2]
[348421323,1736524253782,-1241.67,9.558e-05,2]
[348421324,1736524253792,-742.95,9.558e-05,2]
[348421325,1736524253802,-675.3,9.558e-05,2]
[348421326,1736524253813,-1052.3,9.558e-05,2]
[348421327,1736524253823,-792.94,9.558e-05,2]
[348421328,1736524253833,-675.43,9.559e-05,2]
[348421329,1736524253843,-714.54,9.559e-05,2]
[348421330,1736524253854,-500.0,9.559e-05,2]
[348421331,1736524253865,-3297.03,9.559e-05,2]
[348421332,1736524253876,-764.62,9.559e-05,2]
[348421333,1736524253887,-764.62,9.559e-05,2]
[348421334,1736524253897,-500.0,9.559e-05,2]
[348421335,1736524253908,-621.27,9.559e-05,2]
[348421336,1736524253922,-500.0,9.559e-05,2]
[348421337,1736524253932,-500.0,9.559e-05,2]
[348421338,1736524253942,-500.0,9.559e-05,2]
[348421339,1736524253952,-535.32,9.559e-05,2]
[348421340,1736524253964,-1434.01,9.559e-05,2]
[348421341,1736524253974,-500.0,9.559e-05,2]
[348421342,1736524253984,-635.49,9.559e-05,2]
[348421343,1736524253996,-1010.79,9.559e-05,2]
[348421344,1736524254006,-500.0,9.559e-05,2]
[348421345,1736524254016,-1419.64,9.559e-05,2]
[348421346,1736524254026,-500.0,9.559e-05,2]
[348421347,1736524254036,-609.13,9.559e-05,2]
[348421348,1736524254046,-1774.64,9.559e-05,2]
[348421349,1736524254056,-1039.15,9.559e-05,2]
[348421350,1736524254067,-528.76,9.559e-05,2]
[348421351,1736524254078,-500.0,9.559e-05,2]
[348421352,1736524254089,-994.56,9.559e-05,2]
[348421353,1736524254099,-593.02,9.559e-05,2]
[348421354,1736524254110,-1240.07,9.559e-05,2]
[348421355,1736524254120,-814.5,9.559e-05,2]
[348421356,1736524254132,-868.17,9.559e-05,2]
[348421357,1736524254143,-953.37,9.559e-05,2]
[348421358,1736524254153,-500.0,9.559e-05,2]
[348421359,1736524254163,-500.0,9.559e-05,2]
[348421360,1736524254173,-334.51271155,9.559e-05,2]
[348421361,1736524254183,-500.0,9.559e-05,2]
[348421362,1736524254193,-789.01,9.559e-05,2]
[348421363,1736524254203,-500.0,9.559e-05,2]
[348421364,1736524254214,-1265.34,9.559e-05,2]
[348421365,1736524254224,-500.0,9.559e-05,2]
[348421366,1736524254236,-500.0,9.559e-05,2]
[348421367,1736524254246,-3093.1,9.559e-05,2]
[348421368,1736524254258,-864.42,9.559e-05,2]
[348421369,1736524254269,-500.0,9.559e-05,2]
[348421370,1736524254279,-500.0,9.559e-05,2]
[348421371,1736524254290,-1402.75,9.559e-05,2]
[348421372,1736524254301,-1766.75,9.559e-05,2]
[348421373,1736524254312,-500.0,9.559e-05,2]
[348421374,1736524254323,-555.91,9.559e-05,2]
[348421375,1736524254334,-652.78,9.559e-05,2]
[348421376,1736524254344,-608.24,9.559e-05,2]
[348421377,1736524254355,-4401.25,9.559e-05,2]
[348421378,1736524254365,-500.0,9.559e-05,2]
[348421379,1736524254377,-500.0,9.559e-05,2]
[348421380,1736524254388,-500.0,9.559e-05,7]
[348421381,1736524254398,-500.0,9.559e-05,2]
[348421382,1736524254408,-500.0,9.559e-05,2]
[348421383,1736524254419,-880.99,9.559e-05,2]
[348421384,1736524254430,-500.0,9.559e-05,2]
[348421385,1736524254441,-4953.9,9.559e-05,2]
[348421386,1736524254451,-500.0,9.559e-05,2]
[348421387,1736524254462,-500.0,9.559e-05,2]
[348421388,1736524254472,-1040.05,9.559e-05,2]
[348421389,1736524254482,-500.0,9.559e-05,2]
[348421390,1736524254492,-500.0,9.559e-05,2]
[348421391,1736524254503,-500.0,9.559e-05,2]
[348421392,1736524254513,-728.84,9.559e-05,2]
[348421393,1736524254526,-787.78,9.559e-05,2]
[348421394,1736524254536,-901.88,9.559e-05,2]
[348421395,1736524254547,-895.76,9.559e-05,2]
[348421396,1736524254558,-677.22,9.559e-05,2]
[348421397,1736524254568,-500.0,9.559e-05,2]
[348421398,1736524254577,-2539.7,9.559e-05,2]
[348421399,1736524254588,-812.91,9.559e-05,2]
[348421400,1736524254598,-500.0,9.559e-05,2]
[348421401,1736524254610,-500.0,9.559e-05,2]
[348421402,1736524254621,-500.0,9.559e-05,2]
[348421403,1736524254632,-626.16,9.559e-05,2]
[348421404,1736524254642,-500.0,9.559e-05,2]
[348421405,1736524254653,-500.0,9.559e-05,2]
[348421406,1736524254664,-544.97,9.559e-05,2]
[348421407,1736524254674,-500.0,9.559e-05,2]
[348421408,1736524254685,-500.0,9.559e-05,2]
[348421409,1736524254695,-5186.84,9.559e-05,2]
[348421410,1736524254706,-707.45,9.559e-05,2]
[348421411,1736524254716,-500.0,9.559e-05,2]
[348421412,1736524254727,-500.0,9.559e-05,2]
[348421413,1736524254738,-686.88,9.559e-05,2]
[348421414,1736524254748,-500.0,9.559e-05,2]
[348421415,1736524254758,-500.0,9.559e-05,2]
[348421416,1736524254769,-657.79,9.559e-05,2]
[348421417,1736524254779,-500.0,9.559e-05,2]
[348421418,1736524254790,-500.0,9.559e-05,2]
[348421419,1736524254801,-518.26694306,9.559e-05,2]
[348421420,1736524254811,-500.0,9.559e-05,2]
[348421421,1736524254822,-500.0,9.559e-05,2]
[348421422,1736524254832,-856.71,9.559e-05,2]
[348421423,1736524255073,-783.7,9.559e-05,2]
[348421424,1736524255121,-794.78,9.559e-05,2]
[348421425,1736524255134,-1062.86,9.559e-05,2]
[348421426,1736524255145,-500.0,9.559e-05,2]
[348421427,1736524255155,-3899.76,9.559e-05,2]
[348421428,1736524255165,-500.0,9.559e-05,2]
[348421429,1736524255175,-500.0,9.559e-05,2]
[348421430,1736524255186,-500.0,9.559e-05,2]
[348421431,1736524255196,-634.52,9.559e-05,2]
[348421432,1736524255206,-500.0,9.559e-05,2]
[348421433,1736524255216,-500.0,9.559e-05,2]
[348421434,1736524255226,-1022.03,9.559e-05,2]
[348421435,1736524255236,-939.3,9.559e-05,2]
[348421436,1736524255247,-691.24,9.559e-05,2]
[348421437,1736524255258,-500.0,9.559e-05,2]
[348421438,1736524255269,-4054.05,9.559e-05,2]
[348421439,1736524255280,-813.45,9.559e-05,2]
[348421440,1736524255290,-500.0,9.559e-05,2]
[348421441,1736524255300,-500.0,9.559e-05,2]
[348421442,1736524255309,-500.0,9.559e-05,2]
[348421443,1736524255319,-500.0,9.559e-05,2]
[348421444,1736524255329,-500.0,9.559e-05,2]
[348421445,1736524255338,-1362.38,9.559e-05,2]
[348421446,1736524255348,-500.0,9.559e-05,2]
[348421447,1736524255358,-500.0,9.559e-05,2]